{"text_format":"1","workbook":"xlsx","n_sheets":6,"sheets":["解除依頼書 ","PASSWORD REQUEST","６台目以降 6 units or more"," スギノ回答用シート","List of Contact","選択項目用管理シート"],"not_rendered":{"charts":0,"images":0,"macros":1,"external_links":0,"defined_names":67,"comments":0,"pivot_tables":0},"unopened":[],"bounds":{"document_bytes":16777216,"sheet_cells":100000,"rows_first":2000,"rows_last":500,"rows_between":2000,"halvings":0,"cell_chars":16384,"cell_head_chars":4096},"cells_cut":0,"cells_raw":0,"read":"whole","date_system":"1900"}

{"sheet":"解除依頼書 ","index":0,"n_rows":43,"n_cols":11,"rows_kept":43,"cut":false,"hidden":false,"merged":[[13,5,13,10],[30,2,30,3],[31,2,31,3],[32,2,32,3],[33,2,33,3],[29,6,29,7],[30,6,30,7],[31,6,31,7],[32,6,32,7],[33,6,33,7],[24,1,24,5],[24,6,24,10],[26,8,26,10],[27,1,28,1],[27,2,27,5],[27,6,27,10],[40,1,41,4],[40,5,40,10],[41,5,41,10],[28,6,28,7],[25,2,25,10],[34,6,34,10],[35,9,35,10],[36,9,36,10],[39,1,39,4],[39,5,39,10],[29,2,29,3],[29,4,29,5],[30,4,30,5],[31,4,31,5],[32,4,32,5],[33,4,33,5],[28,2,28,3],[28,4,28,5],[22,5,22,10],[21,2,21,4],[22,2,22,4],[20,2,20,4],[20,1,22,1],[17,5,17,10],[18,5,18,10],[19,5,19,10],[20,5,20,10],[21,5,21,10],[8,1,8,4],[8,5,8,10],[9,1,9,4],[9,5,9,10],[10,1,10,4],[10,5,10,10],[3,9,3,10],[6,1,6,4],[6,5,6,10],[7,1,7,4],[7,5,7,10],[15,1,15,2],[17,2,17,4],[18,2,18,4],[19,2,19,4],[17,1,19,1]]}
[null,"帳票番号  PM-PR-230008 別紙2_REV6"]
[null,"移設検知ロック解除依頼書 兼 対応記録票"]
[null,"事前審査をお申し込みの場合は赤枠以外をすべて記載ください。"]
[null,null,null,null,null,null,"①",null,"記 載 日","　年　　月　　日"]
[null,null,null,null,null,null,null,null,null,null,"※①～②は一か月以内のこと"]
[null,"ユーザー情報　※ ロック解除作業者が下記と異なる場合、名刺などの作業者情報を別途添付下さい。"]
[null,"会 社 名"]
[null,"住 所(国名含む)"]
[null,"役職（ない場合は空欄可）"]
[null,"お名前"]
[null,"連絡先（TEL）"]
[]
[]
[null,"ロック発生原因（アラーム内容）の確認",null,null,null,{"$f":"\"\"&VLOOKUP(SUM(選択項目用管理シート!A2:B3),選択項目用管理シート!D2:E6,2,FALSE)","v":"（該当する原因を１つ以上、プルダウンで●にしてください)　"}]
[null,"　　　　　　　　　　　",null,"〇","1.移設検知バッテリー電圧低下アラーム",null,null,"〇","2.移設検知作動アラーム"]
[null,null,null,"〇","3.移設検知センサーアラーム",null,null,"〇","4.移設検知判別アラーム（接続不良）"]
[null,"移設前と移設後の使用者及び所在確認事項(納入済機移設の場合)"]
[null,"移設前","移設前の会社名（工場名まで）"]
[null,null,"住 所"]
[null,null,"連絡先（TEL）"]
[null,"移設後","移設後の会社名（工場名まで）"]
[null,null,"住 所"]
[null,null,"連絡先（TEL）"]
[]
[null,"ロックを解除する装置の情報",null,null,null,null,"※クリアキーの記入が①と同日の場合は②記載日の省略可。①～②は一か月以内のこと"]
[null,null,"！注意！ロック解除までNCの電源は落とさないでください。"]
[null,null,null,null,null,null,"② 記 載 日",null,"　年　　月　　日"]
[null,"№","対象装置の情報",null,null,null,"クリアキー（ロック解除時にタッチパネルに表示されたクリアキーを記入）"]
[null,null,"製造番号",null,"型式",null,"A",null,"B","C","D"]
[null,1]
[null,2]
[null,3]
[null,4]
[null,5]
[]
[null,null,null,null,null,null,null,null,"管理No."]
[null,null,null,null,null,null,null,null,"記 載 日","　年　　月　　日"]
[null,"　",null,null,"（スギノマシン記載欄）",null,null,null,"拠点長承認","対応者","受付者"]
[null,"解除パスワードの発行判定"]
[null,"判定(〇で囲む)",null,null,null,"可　　・　　不可　　・　　SMLに確認"]
[null,"不可及び\nSMLに確認理由"]
[]
[null,null,null,null,null,null,null,null,null,null,"株式会社 スギノマシン 精密機器事業本部 技術統括部 第二技術部 設計課三係"]

{"sheet":"PASSWORD REQUEST","index":1,"n_rows":43,"n_cols":11,"rows_kept":43,"cut":false,"hidden":false,"merged":[[29,2,29,3],[30,2,30,3],[31,2,31,3],[32,2,32,3],[33,2,33,3],[36,9,36,10],[39,1,39,4],[39,5,39,10],[40,1,41,4],[40,5,40,10],[41,5,41,10],[35,9,35,10],[29,4,29,5],[30,4,30,5],[31,4,31,5],[32,4,32,5],[33,4,33,5],[34,6,34,10],[29,6,29,7],[30,6,30,7],[31,6,31,7],[32,6,32,7],[33,6,33,7],[24,1,24,5],[25,2,25,10],[26,8,26,10],[27,1,28,1],[27,2,27,5],[27,6,27,10],[28,2,28,3],[28,4,28,5],[28,6,28,7],[20,1,20,4],[20,5,20,10],[21,1,21,4],[21,5,21,10],[22,1,22,4],[22,5,22,10],[17,1,17,4],[17,5,17,10],[18,1,18,4],[18,5,18,10],[19,1,19,4],[19,5,19,10],[8,1,8,4],[8,5,8,10],[9,1,9,4],[9,5,9,10],[10,1,10,4],[10,5,10,10],[3,9,3,10],[6,1,6,4],[6,5,6,10],[7,1,7,4],[7,5,7,10]]}
[null,"帳票番号  PM-PR-230008 別紙2_REV6"]
[null,"PASSWORD REQUEST/ RECORD"]
[null,"To request the lock release approval in advance, fill all sections except for CLEAR KEY."]
[null,null,null,null,null,null,"①",null,"Date"]
[null,null,null,null,null,null,null,null,null,null,"* ① to ② should be within a month"]
[null,"User Information (the person in charge)　",null,null,null,null,null,null,null,null,"*When the requesting person is  different from the user, attach the former's information separately."]
[null,"Company",null,"Company"]
[null,"Address (full) ",null,"Address (full) "]
[null,"Title (if any)",null,"Name, Title"]
[null,"Name",null,"TEL"]
[null,"TEL",null,"Signature"]
[]
[]
[null,"Alarm specification",null,null,null,{"$f":"\"\"&VLOOKUP(SUM(選択項目用管理シート!A10:B11),選択項目用管理シート!D10:E14,2,FALSE)","v":"（Select one or more applicable reasons by pulldown)　"}]
[null,"　　　　　　　　　　　",null,"〇","1.Battery Alarm (Battery run out )　　　　　　　　　　",null,null,"〇","2.Movement Detection Operation Alarm"]
[null,null,null,"〇","3.Sensor Alarm　　　　　　　　",null,null,"〇","3.Discrimination Alarm (Connection Alarm)    　"]
[null,"User  Information before/after  (in case of relocation only)."]
[null,"Old user name (incl.factory name)",null,"Old user name"]
[null,"Machine location\n(Address)",null,"Machine location\n(Address)"]
[null,"TEL",null,"TEL"]
[null,"New user name (incl.factory name)",null,"New user name"]
[null,"Machine location\n(Address)",null,"Machine location\n(Address)"]
[null,"TEL",null,"TEL"]
[]
[null,"Product Information",null,null,null,null,null,null,null,null,"* ① to ② should be within a month."]
[null,null,"! CAUTION ! Do not turn off NC before the lock is released."]
[null,null,null,null,null,null,"② Date"]
[null,"№","Product Information",null,null,null,"Clear Keys ( shown on NC screen)"]
[null,null,"Mfg. Number",null,"Model",null,"A",null,"B","C","D"]
[null,1]
[null,2]
[null,3]
[null,4]
[null,5]
[]
[null,null,null,null,null,null,null,null,"No."]
[null,null,null,null,null,null,null,null,"Date"]
[null,"　",null,null,"（Used by Sugino）",null,null,null,"Approved","Checked","Received"]
[]
[null,"Password release ",null,null,null,"Approved  ・  Denied　・　Check with SML"]
[null,"Reason for Denial or Check"]
[]
[null,null,null,null,null,null,null,null,null,null,"株式会社 スギノマシン 精密機器事業本部 技術統括部 第二技術部 設計課三係"]

{"sheet":"６台目以降 6 units or more","index":2,"n_rows":21,"n_cols":8,"rows_kept":21,"cut":false,"hidden":false,"merged":[[3,5,3,7],[4,1,5,1]]}
[]
[null,null,"！注意！ロック解除までNCの電源は落とさないでください。"]
[null,null,"! CAUTION ! Do not turn off NC before the lock is released."]
[]
[null,"№","対象装置の情報\nDetail of machines",null,"クリアキー（ロック解除時にタッチパネルに表示されたクリアキーを記入）\nClear Keys ( shown on NC screen)"]
[null,null,"製造番号\nMfg. Number","型式\nModel","A","B","C","D"]
[null,6]
[null,7]
[null,8]
[null,9]
[null,10]
[null,11]
[null,12]
[null,13]
[null,14]
[null,15]
[null,16]
[null,17]
[null,18]
[null,19]
[null,20]

{"sheet":" スギノ回答用シート","index":3,"n_rows":28,"n_cols":6,"rows_kept":28,"cut":false,"hidden":false,"merged":[[6,1,7,1]]}
[]
[null,null,"パスワード連絡シート"]
[null,null,"PASSWORD INFORMATION"]
[null,null,"本シートをPDF化してパスワードを連絡ください"]
[]
[]
[null,"№","対象装置の情報\nDetail of machines",null,"パスワード\nPASSWORD"]
[null,null,"製造番号\nMfg. Number","型式\nModel","E","F"]
[null,1,{"$f":"SerialNumber(B9)","v":""},{"$f":"model(B9)","v":""}]
[null,2,{"$f":"SerialNumber(B10)","v":""},{"$f":"model(B10)","v":""}]
[null,3,{"$f":"SerialNumber(B11)","v":""},{"$f":"model(B11)","v":""}]
[null,4,{"$f":"SerialNumber(B12)","v":""},{"$f":"model(B12)","v":""}]
[null,5,{"$f":"SerialNumber(B13)","v":""},""]
[null,6,{"$f":"'６台目以降 6 units or more'!C7","v":0},{"$f":"'６台目以降 6 units or more'!D7","v":0}]
[null,7,{"$f":"'６台目以降 6 units or more'!C8","v":0},{"$f":"'６台目以降 6 units or more'!D8","v":0}]
[null,8,{"$f":"'６台目以降 6 units or more'!C9","v":0},{"$f":"'６台目以降 6 units or more'!D9","v":0}]
[null,9,{"$f":"'６台目以降 6 units or more'!C10","v":0},{"$f":"'６台目以降 6 units or more'!D10","v":0}]
[null,10,{"$f":"'６台目以降 6 units or more'!C11","v":0},{"$f":"'６台目以降 6 units or more'!D11","v":0}]
[null,11,{"$f":"'６台目以降 6 units or more'!C12","v":0},{"$f":"'６台目以降 6 units or more'!D12","v":0}]
[null,12,{"$f":"'６台目以降 6 units or more'!C13","v":0},{"$f":"'６台目以降 6 units or more'!D13","v":0}]
[null,13,{"$f":"'６台目以降 6 units or more'!C14","v":0},{"$f":"'６台目以降 6 units or more'!D14","v":0}]
[null,14,{"$f":"'６台目以降 6 units or more'!C15","v":0},{"$f":"'６台目以降 6 units or more'!D15","v":0}]
[null,15,{"$f":"'６台目以降 6 units or more'!C16","v":0},{"$f":"'６台目以降 6 units or more'!D16","v":0}]
[null,16,{"$f":"'６台目以降 6 units or more'!C17","v":0},{"$f":"'６台目以降 6 units or more'!D17","v":0}]
[null,17,{"$f":"'６台目以降 6 units or more'!C18","v":0},{"$f":"'６台目以降 6 units or more'!D18","v":0}]
[null,18,{"$f":"'６台目以降 6 units or more'!C19","v":0},{"$f":"'６台目以降 6 units or more'!D19","v":0}]
[null,19,{"$f":"'６台目以降 6 units or more'!C20","v":0},{"$f":"'６台目以降 6 units or more'!D20","v":0}]
[null,20,{"$f":"'６台目以降 6 units or more'!C21","v":0},{"$f":"'６台目以降 6 units or more'!D21","v":0}]

{"sheet":"List of Contact","index":4,"n_rows":45,"n_cols":12,"rows_kept":45,"cut":false,"hidden":false,"merged":[]}
[]
[null,"List of Contact　　サービス拠点一覧",null,null,null,null,null,null,null,null,null,"2024.7.1"]
[]
[null,"Japan 日本"]
[null,"株式会社スギノマシン　精密機器事業本部　エンジニアリングサポート部   "]
[null,"〒936-8588 富山県滑川市中野島1800番地"]
[null,"（076）475-3111"]
[null,"TD_ES@sugino.com"]
[]
[]
[null,"United States of America アメリカ"]
[null,"Sugino Corp."]
[null,"1380 Hamilton Parkway Itasca,Illinois 60143,U.S.A."]
[null,"(+1)-630-250-8585"]
[null,"sales@suginocorp.com"]
[]
[null,"Mexico メキシコ"]
[null,"Sugino Machine Mexico, S. A. de C. V."]
[null,"WeWork Avenida Constitución 2050, Floor 38-105, Centro, Monterrey, Nuevo León, Mexico CP 64060"]
[null,"(+52)-81-1100-0108"]
[null,"servicio@sugino.com.mx"]
[]
[null,"France フランス"]
[null,"Sugino Machine France S.A.S."]
[null,"34, rue Louis ULBACH 92400 Courbevoie France"]
[null,"(+33)-1-84-17-49-87"]
[null,"service@sugino.eu"]
[]
[null,"China 中国"]
[null,"上海杉野機械有限公司"]
[null,"上海市普陀区岚皋路597号品尊十八英尺行政公馆304-305室"]
[null,"(+86)-21-5385-5031"]
[null,"sha@sugino.cn"]
[]
[null,"India インド"]
[null,"Sugino Machine India Pvt. Ltd."]
[null,"Unit No.302, Third Floor, Time Tower, MG Road, Gurgaon –122002, Haryana, India"]
[null,"(+91)-124-483-1900"]
[null,"contact@sugino.co.in"]
[]
[null,"Thailand タイ"]
[null,"Sugino Machine (Thailand) Ltd."]
[null,"169 M. 1,T. Ban-Lane, A. Bang Pa-In Ayutthaya, 13160 Thailand"]
[null,"(+66)-3572-9351"]
[null,"contact@sugino.th.com"]

{"sheet":"選択項目用管理シート","index":5,"n_rows":15,"n_cols":5,"rows_kept":15,"cut":false,"hidden":true,"merged":[[14,0,14,4]]}
["【和文用】"]
[{"$f":"IFERROR(IF(CODE('解除依頼書 '!D15)=8572,1,0),0)","v":0},{"$f":"IFERROR(IF(CODE('解除依頼書 '!H15)=8572,1,0),0)","v":0},null,0,"（該当する原因を１つ以上、プルダウンで●にしてください)　"]
[{"$f":"IFERROR(IF(CODE('解除依頼書 '!D16)=8572,1,0),0)","v":0},{"$f":"IFERROR(IF(CODE('解除依頼書 '!H16)=8572,1,0),0)","v":0},null,1]
["選択状況",null,null,2]
[{"$f":"SUM(A2:B3)","v":0},null,null,3]
["選択エラーメッセージ",null,null,4]
["「ロック発生原因確認」が正しく選択されていません。該当項目を一つ以上選択して下さい。"]
[]
["【英文用】"]
[{"$f":"IFERROR(IF(CODE('PASSWORD REQUEST'!D15)=8572,1,0),0)","v":0},{"$f":"IFERROR(IF(CODE('PASSWORD REQUEST'!H15)=8572,1,0),0)","v":0},null,0,"（Select one or more applicable reasons by pulldown)　"]
[{"$f":"IFERROR(IF(CODE('PASSWORD REQUEST'!D16)=8572,1,0),0)","v":0},{"$f":"IFERROR(IF(CODE('PASSWORD REQUEST'!H16)=8572,1,0),0)","v":0},null,1]
["選択状況",null,null,2]
[{"$f":"SUM(A10:B11)","v":0},null,null,3]
["選択エラーメッセージ",null,null,4]
["\"Reason for being locked\" is not selected properly. Please select one or more reasons."]